bitfinex-derivatives/quotes_BTCF0:USTF0_20241218
["timestamp","ask_amount","ask_price","bid_price","bid_amount"]
[1734561771306,0.06167986,101020.0,101000.0,0.88713123]
[1734561771608,0.11119686,101020.0,101010.0,0.487]
[1734561772209,0.04960085,101020.0,101010.0,0.487]
[1734561772596,0.05060085,101020.0,101010.0,0.4865]
[1734561772796,0.05160085,101020.0,101010.0,0.4915]
[1734561773602,0.05160085,101020.0,101010.0,0.492]
[1734561774309,0.05160085,101020.0,101010.0,0.614]
[1734561774709,0.05160085,101020.0,101010.0,0.6135]
[1734561775104,0.05160085,101020.0,101010.0,0.6145]
[1734561775895,0.14572878,101020.0,101010.0,0.6145]
[1734561777705,0.05160085,101020.0,101010.0,0.6145]
[1734561778817,0.05160085,101020.0,101010.0,0.664022]
[1734561779216,0.14572878,101020.0,101010.0,0.664022]
[1734561779412,0.05160085,101020.0,101010.0,0.664022]
[1734561780914,0.05160085,101020.0,101010.0,0.964022]
[1734561781614,0.00208385,101020.0,101010.0,0.964022]
[1734561781921,0.049515,101030.0,101020.0,0.049517]
[1734561782219,0.049515,101030.0,101020.0,0.539517]
[1734561782430,0.049515,101030.0,101020.0,0.839517]
[1734561782920,0.04956572,101030.0,101020.0,0.84087467]
[1734561783617,0.10406791,101040.0,101020.0,0.84087467]
[1734561783820,0.15357791,101040.0,101030.0,0.41166967]
[1734561785111,0.05944998,101040.0,101030.0,0.41466967]
[1734561785309,0.04951,101040.0,101030.0,0.71466967]
[1734561785510,0.04951,101040.0,101030.0,0.71566967]
[1734561785716,0.04951,101040.0,101030.0,0.75703787]
[1734561786620,0.04951,101040.0,101030.0,0.69847787]
[1734561787922,0.04951,101040.0,101030.0,0.70816418]
[1734561788227,0.04951,101040.0,101030.0,0.66679598]
[1734561788526,0.04951,101040.0,101030.0,0.66815325]
[1734561789422,0.04951,101040.0,101030.0,0.36815325]
[1734561792414,0.14363793,101040.0,101030.0,0.3608]
[1734561792617,0.14363793,101040.0,101010.0,0.0413682]
[1734561792618,0.049517,101020.0,101010.0,0.0413682]
[1734561792933,0.049522,101010.0,101000.0,0.11412783]
[1734561793122,0.88474993,101010.0,101000.0,0.11412783]
[1734561794235,1.00242407,101010.0,101000.0,0.11412783]
[1734561794621,1.00342407,101010.0,101000.0,0.11412783]
[1734561794828,1.00342407,101010.0,101000.0,0.07506991]
[1734561795235,1.1512855,101010.0,101000.0,0.07506991]
[1734561795732,1.1522855,101010.0,101000.0,0.07906991]
[1734561796026,1.00442407,101010.0,101000.0,0.07906991]
[1734561797126,1.1522855,101010.0,101000.0,0.07906991]
[1734561797335,0.04413905,100990.0,100980.0,0.04054318]
[1734561797631,0.40493905,100990.0,100980.0,0.04054318]
[1734561798218,0.49918193,100990.0,100980.0,0.04054318]
[1734561798425,0.49918193,100990.0,100980.0,0.00148526]
[1734561798624,0.50018193,100990.0,100980.0,0.04154318]
[1734561801628,0.50018193,100990.0,100980.0,0.00248526]
[1734561803231,0.50992654,100990.0,100980.0,0.04154318]
[1734561803425,0.50992654,100990.0,100980.0,0.00248526]
[1734561803627,0.50992654,100990.0,100980.0,0.001]
[1734561804128,0.50992654,100990.0,100980.0,0.04005792]
[1734561804528,0.50992654,100990.0,100980.0,0.001]
[1734561809537,0.87072654,100990.0,100980.0,0.001]
[1734561810131,0.87072654,100990.0,100960.0,0.00010625]
[1734561810336,0.049541,100970.0,100960.0,0.03916417]
[1734561810536,0.049541,100970.0,100960.0,0.00010625]
[1734561811626,0.14366893,100970.0,100960.0,0.00010625]
[1734561811832,0.14466893,100970.0,100960.0,0.03916417]
[1734561812232,0.50546893,100970.0,100960.0,0.03916417]
[1734561812438,0.411341,100970.0,100960.0,0.03916417]
[1734561812634,0.50546893,100970.0,100960.0,0.00010625]
[1734561813441,0.50646893,100970.0,100960.0,0.00010625]
[1734561816146,0.51614558,100970.0,100960.0,0.00010625]
[1734561816343,0.51514558,100970.0,100960.0,0.00010625]
[1734561819439,0.51514558,100970.0,100960.0,0.03916417]
[1734561820254,0.51514558,100970.0,100960.0,0.00010625]
[1734561820849,0.51514558,100970.0,100960.0,0.03916417]
[1734561821045,0.51514558,100970.0,100960.0,0.00010625]
[1734561822659,0.63281972,100970.0,100960.0,0.00010625]
[1734561823253,0.63281972,100970.0,100960.0,0.03916417]
[1734561823661,0.63281972,100970.0,100960.0,0.00010625]
[1734561824863,0.63290961,100970.0,100960.0,0.00010625]
[1734561825161,0.63290961,100970.0,100960.0,0.03916417]
[1734561825352,0.63290961,100970.0,100960.0,0.03808033]
[1734561826161,0.78077104,100970.0,100960.0,0.03808033]
[1734561826364,1.08077104,100970.0,100960.0,0.03808033]
[1734561827254,0.99264619,100970.0,100960.0,0.03808033]
[1734561829355,0.94310519,100970.0,100960.0,0.05198275]
[1734561829670,1.00264619,100970.0,100960.0,0.05198275]
[1734561830165,1.00264619,100970.0,100960.0,0.03808033]
[1734561831063,0.049556,100940.0,100930.0,0.293859]
[1734561831654,0.14368393,100940.0,100930.0,0.293859]
[1734561832066,0.11142421,100940.0,100930.0,0.293859]
[1734561832768,0.11242421,100940.0,100930.0,0.293859]
[1734561833158,0.20080993,100940.0,100930.0,0.293859]
[1734561833568,0.20180993,100940.0,100930.0,0.293859]
[1734561834366,0.13994172,100940.0,100930.0,0.954659]
[1734561834566,0.09038572,100940.0,100930.0,0.954659]
[1734561835266,0.002,100940.0,100930.0,0.954659]
[1734561837760,0.19980793,100950.0,100940.0,0.049556]
[1734561837972,0.19980793,100950.0,100940.0,0.410356]
[1734561838668,0.20987185,100950.0,100940.0,0.44965726]
[1734561839264,0.21087185,100950.0,100940.0,0.44965726]
[1734561839674,0.21087185,100950.0,100940.0,0.410356]
[1734561840672,0.21087185,100950.0,100940.0,0.049556]
[1734561841467,0.21087185,100950.0,100940.0,0.410356]
[1734561842870,0.15513298,100950.0,100940.0,0.44965726]
[1734561843075,0.20468498,100950.0,100940.0,0.44965726]
[1734561843271,0.12248413,100950.0,100940.0,0.410356]
[1734561843777,0.12248413,100950.0,100940.0,0.41828671]
[1734561845776,0.12248413,100950.0,100940.0,0.77908671]
[1734561845973,0.12248413,100950.0,100940.0,0.81838797]
[1734561846580,0.12248413,100950.0,100940.0,0.81045726]
[1734561848075,0.06061592,100950.0,100940.0,0.81045726]
[1734561848869,0.12248413,100950.0,100940.0,0.81045726]
[1734561849068,0.12248413,100950.0,100940.0,0.81215798]
[1734561849474,0.06061592,100950.0,100940.0,0.81215798]
[1734561850271,0.12248413,100950.0,100940.0,0.09117712]
[1734561850578,0.12248413,100950.0,100940.0,0.11125777]
[1734561851971,0.06061592,100950.0,100940.0,0.11125777]
[1734561852682,0.12248413,100950.0,100940.0,0.07195651]
[1734561853385,0.06061592,100950.0,100940.0,0.11125777]
[1734561853585,0.06061592,100950.0,100940.0,0.47205777]
[1734561854284,0.12248413,100950.0,100940.0,0.47205777]
[1734561856088,0.06061592,100950.0,100940.0,0.47262763]
[1734561858578,0.06061592,100950.0,100940.0,0.47319921]
[1734561859487,0.06061592,100950.0,100940.0,0.45311856]
[1734561859679,0.06061592,100950.0,100940.0,0.45333565]
[1734561860080,0.06061592,100950.0,100940.0,0.41403439]
[1734561860288,0.06061592,100950.0,100940.0,0.05323439]
[1734561862596,0.06061592,100950.0,100940.0,0.09253565]
[1734561863095,0.06061592,100950.0,100940.0,0.45333565]
[1734561863885,0.06061592,100950.0,100940.0,0.09253565]
[1734561864587,0.06061592,100950.0,100940.0,0.45333565]
[1734561866594,0.06061592,100950.0,100940.0,0.09253565]
[1734561866794,0.06061592,100950.0,100940.0,0.45333565]
[1734561869702,0.06061592,100950.0,100940.0,0.09253565]
[1734561869999,0.19151592,100950.0,100940.0,0.45333565]
[1734561871700,0.25338413,100950.0,100940.0,0.45333565]
[1734561872003,0.37978413,100950.0,100940.0,0.45333565]
[1734561872202,0.50118413,100950.0,100940.0,0.45333565]
[1734561872593,0.50118413,100950.0,100940.0,0.40377965]
[1734561872803,0.50118413,100950.0,100940.0,0.04297965]
[1734561873199,0.50118413,100950.0,100940.0,0.00367839]
[1734561874001,0.86198413,100950.0,100940.0,0.00367839]
[1734561874502,0.86198413,100950.0,100940.0,0.04297965]
[1734561874996,0.86198413,100950.0,100940.0,0.0440011]
[1734561875996,0.97983176,100950.0,100940.0,0.0440011]
[1734561877405,0.61903176,100950.0,100940.0,0.0440011]
[1734561877591,0.97983176,100950.0,100940.0,0.0440011]
[1734561878192,1.04169997,100950.0,100940.0,0.0440011]
[1734561878599,0.049561,100930.0,100920.0,0.87950757]
[1734561878803,0.11142921,100930.0,100920.0,0.87950757]
[1734561879104,0.7366517,100930.0,100920.0,0.46914357]
[1734561879305,0.7862127,100930.0,100920.0,0.46914357]
[1734561879893,0.7882127,100930.0,100920.0,0.001]
[1734561880298,0.049566,100920.0,100910.0,0.00011299]
[1734561880505,0.53410242,100920.0,100910.0,0.00011299]
[1734561881705,0.53610242,100920.0,100910.0,0.00011299]
[1734561881893,0.66310242,100920.0,100910.0,0.00011299]
[1734561882296,0.412366,100920.0,100910.0,0.00011299]
[1734561882495,0.47323421,100920.0,100910.0,0.00011299]
[1734561882697,0.47423421,100920.0,100910.0,0.00011299]
[1734561882896,0.53610242,100920.0,100910.0,0.00011299]
[1734561887509,0.53610242,100920.0,100910.0,0.00182006]
[1734561888607,0.53610242,100920.0,100910.0,0.00352713]
[1734561889108,0.59797063,100920.0,100910.0,0.00352713]
[1734561889305,0.53610242,100920.0,100910.0,0.00352713]
[1734561890217,0.59797063,100920.0,100910.0,0.00352713]
[1734561890410,0.53610242,100920.0,100910.0,0.00352713]
[1734561890806,0.53610242,100920.0,100910.0,0.00411665]
[1734561890807,0.59797063,100920.0,100910.0,0.00411665]
[1734561891223,0.049571,100910.0,100900.0,0.105884]
[1734561891412,0.91160742,100910.0,100900.0,0.105884]
[1734561892007,0.91160742,100910.0,100880.0,0.7451869]
[1734561892212,0.47224921,100890.0,100880.0,0.3843869]
[1734561892909,0.47224921,100890.0,100880.0,0.42272757]
[1734561893217,0.47324921,100890.0,100880.0,0.3838869]
[1734561893413,0.47324921,100890.0,100880.0,0.0014869]
[1734561893618,0.72244921,100890.0,100880.0,0.0014869]
[1734561893809,0.78431742,100890.0,100880.0,0.0019869]
[1734561894115,0.78431742,100890.0,100880.0,0.0005]
[1734561894116,0.660581,100890.0,100880.0,0.0005]
[1734561894419,0.78431742,100890.0,100880.0,0.0005]
[1734561894823,0.78431742,100890.0,100860.0,0.04969242]
[1734561895022,0.11145821,100870.0,100860.0,0.04969242]
[1734561895317,0.11156437,100870.0,100860.0,9.742e-05]
[1734561895507,0.47236437,100870.0,100860.0,9.742e-05]
[1734561895906,0.65493258,100870.0,100860.0,9.742e-05]
[1734561896712,0.65593258,100870.0,100860.0,9.742e-05]
[1734561897416,0.65693258,100870.0,100860.0,9.742e-05]
[1734561898911,0.41249616,100870.0,100860.0,9.742e-05]
[1734561899220,0.53623258,100870.0,100860.0,9.742e-05]
[1734561899420,0.65403258,100870.0,100860.0,9.742e-05]
[1734561899913,0.66244493,100870.0,100860.0,0.00059742]
[1734561900115,0.66144493,100870.0,100860.0,0.00059742]
[1734561900318,0.66044493,100870.0,100860.0,0.00059742]
[1734561900813,0.83670851,100870.0,100860.0,9.742e-05]
[1734561901018,0.66044493,100870.0,100860.0,9.742e-05]
[1734561901619,0.53770851,100870.0,100860.0,9.742e-05]
[1734561901818,0.66144493,100870.0,100860.0,0.00059742]
[1734561902124,0.66344493,100870.0,100860.0,0.00059742]
[1734561902423,0.96344493,100870.0,100860.0,0.00059742]
[1734561903129,1.32980493,100870.0,100860.0,0.00059742]
[1734561903423,1.44790773,100870.0,100830.0,0.410403]
[1734561903723,0.11146921,100840.0,100830.0,0.410403]
[1734561903921,0.10607494,100840.0,100830.0,0.410403]
[1734561904320,0.10607494,100840.0,100830.0,0.44924367]
[1734561904520,0.10607494,100840.0,100830.0,0.39964067]
[1734561904713,0.049606,100830.0,100820.0,0.8104239]
[1734561905814,0.049606,100830.0,100820.0,0.84926457]
[1734561906213,0.050606,100830.0,100820.0,0.85040931]
[1734561906810,0.050606,100830.0,100820.0,0.83090824]
[1734561907014,0.051606,100830.0,100820.0,0.83090824]
[1734561907215,0.051606,100830.0,100820.0,0.78129924]
[1734561907421,0.051606,100830.0,100820.0,0.77365827]
[1734561907621,0.051606,100830.0,100820.0,0.82326927]
[1734561908916,0.051606,100830.0,100820.0,0.82445025]
[1734561909424,0.051606,100830.0,100820.0,0.8261794]
[1734561909820,0.11347421,100830.0,100820.0,0.7765684]
[1734561910123,0.11347421,100830.0,100820.0,0.73772773]
[1734561911131,0.11347421,100830.0,100820.0,0.7765684]
[1734561911925,0.11347421,100830.0,100820.0,0.7770684]
[1734561912922,0.11347421,100830.0,100820.0,0.73772773]
[1734561913318,0.051606,100830.0,100820.0,0.73772773]
[1734561913918,0.051606,100830.0,100820.0,0.73822773]
[1734561914924,0.11359692,100830.0,100820.0,0.73772773]
[1734561915130,0.11359692,100830.0,100820.0,0.37692773]
[1734561915521,0.11359692,100830.0,100820.0,0.4157684]
[1734561916623,0.47439692,100830.0,100820.0,0.37692773]
[1734561917327,0.59249972,100830.0,100820.0,0.37692773]
[1734561917522,0.59149972,100830.0,100820.0,0.37692773]
[1734561917723,0.59149972,100830.0,100820.0,0.39077017]
[1734561917932,0.23069972,100830.0,100820.0,0.39077017]
[1734561918225,0.59149972,100830.0,100820.0,0.39077017]
[1734561918431,0.22969972,100830.0,100820.0,0.39077017]
[1734561918634,0.23069972,100830.0,100820.0,0.4157684]
[1734561918933,0.23069972,100830.0,100820.0,0.4296274]
[1734561919226,0.59149972,100830.0,100820.0,0.4296274]
[1734561919433,0.73880926,100830.0,100820.0,0.37692773]
[1734561919624,0.73880926,100830.0,100820.0,0.01462773]
[1734561920633,0.62070646,100830.0,100820.0,0.01462773]
[1734561921251,0.55883825,100830.0,100820.0,0.0534684]
[1734561921437,0.62070646,100830.0,100820.0,0.1748684]
[1734561921626,0.19803825,100830.0,100820.0,0.3476784]
[1734561921820,0.25990646,100830.0,100820.0,0.3476784]
[1734561922028,0.19803825,100830.0,100820.0,0.7084784]
[1734561922229,0.14843225,100830.0,100820.0,0.77034661]
[1734561922431,0.23569811,100840.0,100830.0,0.049606]
[1734561922621,0.18609611,100840.0,100830.0,0.534206]
[1734561922827,0.18609611,100840.0,100830.0,0.57304667]
[1734561923027,0.18609611,100840.0,100830.0,0.63491488]
[1734561923322,0.28887693,100850.0,100840.0,0.049601]
[1734561923521,0.17741072,100850.0,100840.0,0.47689694]
[1734561923730,0.17750001,100850.0,100840.0,0.47689694]
[1734561923928,0.17750001,100850.0,100840.0,0.51573761]
[1734561924131,0.17750001,100850.0,100840.0,0.4538694]
[1734561924324,0.11829008,100850.0,100840.0,0.51573761]
[1734561924529,0.049593,100860.0,100850.0,0.049596]
[1734561924732,0.049593,100860.0,100850.0,0.60246421]
[1734561924937,0.049593,100860.0,100850.0,0.57943667]
[1734561925539,0.04968001,100860.0,100850.0,0.7101644]
[1734561925735,0.05840187,100860.0,100850.0,0.7101644]
[1734561926035,0.00880887,100860.0,100850.0,0.7101644]
[1734561926728,0.17741072,100870.0,100860.0,0.049591]
[1734561927042,0.049582,100880.0,100870.0,0.049586]
[1734561927240,0.049582,100880.0,100870.0,0.410386]
[1734561927541,0.049582,100880.0,100870.0,0.41501373]
[1734561927836,7.1e-05,100880.0,100870.0,0.41501373]
[1734561928043,0.000571,100880.0,100870.0,0.4538544]
[1734561928638,0.000571,100880.0,100870.0,0.41501373]
[1734561928639,0.001571,100880.0,100870.0,0.41501373]
[1734561929040,0.001571,100880.0,100870.0,0.71501373]
[1734561929240,0.05811877,100890.0,100870.0,0.7538544]
[1734561929241,0.00853777,100890.0,100870.0,0.7538544]
[1734561929537,0.2284701,100900.0,100890.0,0.049576]
[1734561929538,0.05105938,100900.0,100890.0,0.049576]
[1734561929738,0.05105938,100900.0,100890.0,0.410376]
[1734561930137,0.00148738,100900.0,100890.0,0.410376]
[1734561930327,0.0015594,100900.0,100890.0,0.410376]
[1734561930525,0.0015594,100900.0,100890.0,0.41328613]
[1734561930732,0.0015594,100900.0,100890.0,0.41500373]
[1734561931135,0.0025594,100900.0,100890.0,0.41700373]
[1734561931640,0.00107202,100900.0,100890.0,0.41700373]
[1734561932531,0.059568,100910.0,100890.0,0.54750373]
[1734561932733,0.01,100910.0,100900.0,0.410371]
[1734561933140,0.01,100910.0,100900.0,0.80477203]
[1734561933332,0.00347,100920.0,100910.0,0.049566]
[1734561933534,0.00347,100920.0,100910.0,0.538766]
[1734561933742,0.00347,100920.0,100910.0,0.84167613]
[1734561934833,0.00347,100920.0,100910.0,0.84367613]
[1734561935331,0.00347,100920.0,100910.0,0.93907716]
[1734561935541,0.05103995,100940.0,100930.0,0.049556]
[1734561935741,0.05103995,100940.0,100930.0,0.41326613]
[1734561936737,0.06306293,100940.0,100930.0,0.41326613]
[1734561936946,0.06806293,100940.0,100930.0,0.41426613]
[1734561938731,0.06657598,100940.0,100930.0,0.41426613]
[1734561939841,0.06657598,100940.0,100930.0,0.77506613]
[1734561940142,0.008,100940.0,100930.0,0.77506613]
[1734561944654,0.057551,100940.0,100930.0,0.77506613]
[1734561945951,0.058051,100940.0,100930.0,0.77506613]
[1734561946136,0.058051,100940.0,100930.0,0.41426613]
[1734561947048,0.057551,100940.0,100930.0,0.41426613]
[1734561947943,0.058051,100940.0,100930.0,0.41426613]
[1734561949049,0.057551,100940.0,100930.0,0.41426613]
[1734561957857,0.008,100940.0,100930.0,0.50866716]
[1734561962062,0.15503463,100940.0,100930.0,0.50866716]
[1734561963267,0.18541072,100940.0,100930.0,0.50866716]
[1734561965967,0.18541072,100940.0,100930.0,0.4761072]
[1734561966852,0.18241072,100940.0,100930.0,0.4761072]
[1734561967055,0.17841072,100940.0,100930.0,0.4821072]
[1734561969664,0.14951406,100940.0,100930.0,0.4821072]
[1734561972266,0.14951406,100940.0,100930.0,0.6078072]
[1734561973362,0.14951406,100940.0,100930.0,0.7384072]
[1734561975768,0.001,100940.0,100930.0,0.7384072]
[1734561976773,0.001,100940.0,100930.0,0.74832756]
[1734561976967,0.001,100940.0,100930.0,0.7384072]
[1734561977169,0.001,100940.0,100930.0,0.74832756]
[1734561978069,0.09010364,100940.0,100930.0,1.10460564]
[1734561978577,0.09010364,100940.0,100930.0,0.97890564]
[1734561979072,0.09010364,100940.0,100930.0,1.09940564]
[1734561979668,0.09010364,100940.0,100930.0,1.12065068]
[1734561979868,0.03436533,100940.0,100930.0,1.12065068]
[1734561981179,0.00866519,100950.0,100930.0,1.17794154]
[1734561981369,0.59845806,100960.0,100940.0,0.47219307]
[1734561981678,0.59845806,100960.0,100950.0,0.41325713]
[1734561982677,0.60045806,100960.0,100950.0,0.41325713]
[1734561983284,0.451944,100960.0,100950.0,0.76955286]
[1734561983676,0.46284447,100960.0,100950.0,0.76955286]
[1734561983876,0.46384447,100960.0,100950.0,0.76955286]
[1734561984079,0.46384447,100960.0,100950.0,0.77947322]
[1734561984380,0.46384447,100960.0,100950.0,0.76955286]
[1734561985479,0.58255633,100960.0,100950.0,0.76955286]
[1734561986575,0.58255633,100960.0,100950.0,0.40875286]
[1734561986777,0.58255633,100960.0,100950.0,0.76955286]
[1734561987180,0.46384447,100960.0,100950.0,0.76955286]
[1734561988582,0.46384447,100960.0,100950.0,0.77947322]
[1734561989084,0.46384447,100960.0,100950.0,0.76955286]
[1734561989471,0.46384447,100960.0,100950.0,0.83139393]
[1734561989879,0.46384447,100960.0,100950.0,0.76955286]
[1734561991788,0.46384447,100960.0,100950.0,0.77947322]
[1734561991991,0.46384447,100960.0,100950.0,0.76955286]
[1734561994073,0.46384447,100960.0,100950.0,0.40875286]
[1734561994287,0.46384447,100960.0,100950.0,0.76955286]
[1734561995391,0.45384447,100960.0,100950.0,0.76955286]
[1734561996299,0.45384447,100960.0,100950.0,0.77947322]
[1734561996999,0.45384447,100960.0,100950.0,0.41325713]
[1734561997695,0.45384447,100960.0,100950.0,0.42317749]
[1734561999400,0.45384447,100960.0,100950.0,0.41325713]
[1734562000388,0.45384447,100960.0,100950.0,0.42317749]
[1734562000590,0.45384447,100960.0,100950.0,0.41325713]
[1734562001494,0.45384447,100960.0,100950.0,0.769137]
[1734562002697,0.14851406,100980.0,100970.0,0.049537]
[1734562002997,0.43224606,100980.0,100970.0,0.410337]
[1734562003592,0.283732,100980.0,100970.0,0.71667987]
[1734562003802,0.283732,100980.0,100970.0,0.71959]
[1734562004600,0.31463711,100980.0,100970.0,0.71959]
[1734562004801,0.31463711,100980.0,100970.0,0.72259]
[1734562005296,0.31463711,100980.0,100970.0,0.71959]
[1734562005506,0.31563711,100980.0,100970.0,0.71959]
[1734562005697,0.31663711,100980.0,100970.0,0.71959]
[1734562006093,0.31663711,100980.0,100970.0,0.36371013]
[1734562007991,0.31663711,100980.0,100970.0,0.41324713]
[1734562009810,0.37847818,100980.0,100970.0,0.41324713]
[1734562010005,0.31663711,100980.0,100970.0,0.41324713]
[1734562010198,0.37847818,100980.0,100970.0,0.41324713]
[1734562010400,0.31663711,100980.0,100970.0,0.41324713]
[1734562010604,0.31663711,100980.0,100970.0,0.769127]
[1734562013798,0.31663711,100980.0,100970.0,0.70877955]
[1734562014303,0.31663711,100980.0,100970.0,0.77062062]
[1734562016502,0.31663711,100980.0,100970.0,0.34797955]
[1734562017208,0.31663711,100980.0,100970.0,0.05244713]
[1734562017605,0.73927818,100980.0,100970.0,0.05244713]
[1734562018301,0.67847818,100980.0,100970.0,0.00291013]
[1734562018502,0.74031925,100980.0,100970.0,0.00291013]
[1734562018708,0.049537,100970.0,100960.0,0.71667987]
[1734562018908,0.11137807,100970.0,100960.0,0.71667987]
[1734562019101,0.77217807,100970.0,100960.0,0.35587987]
[1734562019297,0.049546,100950.0,100940.0,0.77436894]
[1734562019503,0.47218707,100950.0,100930.0,0.46452394]
[1734562019810,0.65233314,100940.0,100930.0,0.22046894]
[1734562020004,0.65233314,100940.0,100920.0,0.46996357]
[1734562020195,0.47219707,100930.0,100920.0,0.27686357]
[1734562020396,0.83815707,100930.0,100920.0,0.27686357]
[1734562020599,0.83815707,100930.0,100890.0,1.36623496]
[1734562020600,1.13815707,100930.0,100890.0,0.72097607]
[1734562020803,0.049571,100900.0,100890.0,0.71961607]
[1734562021207,0.049571,100900.0,100890.0,0.35881607]
[1734562021507,0.049576,100890.0,100880.0,0.17618988]
[1734562021697,0.049576,100890.0,100880.0,0.12661088]
[1734562022110,0.049576,100890.0,100880.0,0.00011088]
[1734562022297,0.410376,100890.0,100880.0,0.00011088]
[1734562022902,0.710376,100890.0,100880.0,0.00011088]
[1734562023102,0.711376,100890.0,100880.0,0.00211088]
[1734562023400,0.711376,100890.0,100870.0,0.01148702]
[1734562023401,0.049581,100880.0,100870.0,0.01]
[1734562023600,0.50473957,100880.0,100870.0,0.01]
[1734562023904,0.80473957,100880.0,100870.0,0.01]
[1734562024303,0.14394957,100860.0,100850.0,0.1265]
[1734562024607,0.40517745,100860.0,100850.0,0.1265]
[1734562025209,0.40528811,100860.0,100840.0,0.4823]
[1734562025512,0.049596,100850.0,100840.0,0.4823]
[1734562027004,0.050596,100850.0,100840.0,0.4913]
[1734562027403,0.050596,100850.0,100840.0,0.49258933]
[1734562027605,0.411396,100850.0,100840.0,0.13178933]
[1734562027798,0.411396,100850.0,100840.0,0.13236158]
[1734562028004,0.50575457,100850.0,100840.0,0.13236158]
[1734562028205,0.14595457,100850.0,100840.0,0.01086158]
[1734562028404,0.049601,100840.0,100830.0,0.05615199]
[1734562028815,0.049601,100840.0,100820.0,0.54582769]
[1734562029520,0.411396,100850.0,100820.0,0.54582769]
[1734562029810,0.049605,100830.0,100820.0,0.54582769]
[1734562031509,0.051605,100830.0,100820.0,0.54582769]
[1734562032115,0.051605,100830.0,100820.0,0.33749451]
[1734562032314,0.051605,100830.0,100820.0,0.18502769]
[1734562033018,0.051605,100830.0,100820.0,0.1247]
[1734562033410,0.050605,100830.0,100820.0,0.1247]
[1734562033618,0.05171588,100830.0,100820.0,0.1247]
[1734562034116,0.04971588,100830.0,100820.0,0.1247]
[1734562035417,0.36091088,100830.0,100810.0,0.40710936]
[1734562035718,0.04961,100820.0,100810.0,0.40710936]
[1734562036511,0.04961,100820.0,100810.0,0.42037512]
[1734562036919,0.04961,100820.0,100810.0,0.17887976]
[1734562037306,0.05061,100820.0,100810.0,0.17887976]
[1734562037809,0.001,100820.0,100810.0,0.27323833]
[1734562038016,0.001,100820.0,100810.0,0.17887976]
[1734562038419,0.001,100820.0,100810.0,0.30477976]
[1734562038615,0.001,100820.0,100810.0,0.42927976]
[1734562040220,0.001,100820.0,100810.0,0.42977976]
[1734562041119,0.001,100820.0,100810.0,0.43084654]
[1734562041331,0.05061,100820.0,100810.0,0.43084654]
[1734562042612,0.05061,100820.0,100810.0,0.43091666]
[1734562042815,0.04961,100820.0,100810.0,0.43091666]
[1734562043422,0.04961,100820.0,100810.0,0.43135549]
[1734562045116,0.04961,100820.0,100810.0,0.41808973]
[1734562046226,0.04961,100820.0,100810.0,0.41758973]
[1734562046718,0.41041,100820.0,100810.0,0.41758973]
[1734562047023,0.55683989,100820.0,100810.0,0.41758973]
[1734562048023,0.58612587,100820.0,100810.0,0.41758973]
[1734562048224,0.58612587,100820.0,100810.0,0.20922387]
[1734562048620,0.58612587,100820.0,100810.0,0.24525951]
[1734562049130,0.58612587,100820.0,100810.0,0.29487251]
[1734562049428,0.41041,100820.0,100810.0,0.11627301]
[1734562049628,0.41041,100820.0,100810.0,0.1168422]
[1734562050220,0.50476857,100820.0,100810.0,0.03874975]
[1734562050835,0.50476857,100820.0,100810.0,0.03897145]
[1734562051330,0.41041,100820.0,100810.0,0.03897145]
[1734562051531,0.50476857,100820.0,100810.0,0.03897145]
[1734562052040,0.5344617,100820.0,100810.0,0.03897145]
[1734562052424,0.47243585,100820.0,100810.0,0.03897145]
[1734562052624,0.5344617,100820.0,100810.0,0.03897145]
[1734562053932,0.50491444,100820.0,100810.0,0.03897145]
[1734562054133,0.79777423,100820.0,100810.0,0.03897145]
[1734562054335,0.049615,100810.0,100800.0,0.19095277]
[1734562054534,0.50491944,100810.0,100800.0,0.19095277]
[1734562054729,0.410415,100810.0,100800.0,0.19095277]
[1734562054938,0.40591508,100810.0,100800.0,0.19095277]
[1734562055521,0.40791508,100810.0,100800.0,0.19095277]
[1734562055738,0.6748557,100810.0,100800.0,0.19095277]
[1734562056528,0.6462052,100810.0,100800.0,0.24057277]
[1734562056723,0.97021141,100820.0,100800.0,0.63507721]
[1734562056930,0.97021141,100820.0,100810.0,0.049615]
[1734562057539,0.410411,100820.0,100810.0,0.049615]
[1734562058634,0.413411,100820.0,100810.0,0.049615]
[1734562059032,0.001,100820.0,100810.0,0.14411944]
[1734562059233,0.001,100820.0,100810.0,0.50591944]
[1734562059428,0.22165542,100830.0,100820.0,0.04961]
[1734562059632,0.22165542,100830.0,100820.0,0.53141]
[1734562060235,0.16585458,100830.0,100820.0,0.65661]
[1734562060636,0.410403,100840.0,100820.0,0.65661]
[1734562060837,0.410403,100840.0,100830.0,0.177905]
[1734562061233,0.36090366,100840.0,100830.0,0.177905]
[1734562061431,0.00010366,100840.0,100830.0,0.177905]
[1734562062239,0.00510366,100840.0,100830.0,0.410405]
[1734562062541,0.3236342,100860.0,100850.0,0.049596]
[1734562062835,0.3236342,100860.0,100850.0,0.410396]
[1734562063041,0.3236342,100860.0,100850.0,0.833896]
[1734562063335,0.3241342,100860.0,100850.0,0.833896]
[1734562063541,0.17987948,100860.0,100850.0,0.833896]
[1734562064226,0.17937948,100860.0,100850.0,0.533896]
[1734562064430,0.1495909,100860.0,100850.0,0.833896]
[1734562064836,0.1525909,100860.0,100850.0,0.833896]
[1734562065133,0.1580909,100860.0,100850.0,0.833896]
[1734562065340,0.27648462,100860.0,100850.0,0.950396]
[1734562065635,0.26848462,100860.0,100850.0,0.954396]
[1734562065833,0.26848462,100860.0,100850.0,1.078696]
[1734562066033,0.26848462,100860.0,100850.0,1.075696]
[1734562066235,0.26898462,100860.0,100850.0,1.082696]
[1734562066433,0.12088216,100860.0,100850.0,1.082696]
[1734562066835,0.12088216,100860.0,100850.0,0.782696]
[1734562067033,0.12088216,100860.0,100850.0,1.09999136]
[1734562067234,0.12138216,100860.0,100850.0,1.09999136]
[1734562067737,0.11989372,100860.0,100850.0,1.09332153]
[1734562068129,0.11939372,100860.0,100850.0,1.09332153]
[1734562068640,0.26769618,100870.0,100860.0,0.049591]
[1734562068837,0.26769618,100870.0,100860.0,0.410391]
[1734562069045,0.26769618,100870.0,100860.0,0.710391]
[1734562069342,0.26819618,100870.0,100860.0,0.710391]
[1734562069547,0.0017,100870.0,100860.0,0.710391]
[1734562069846,0.0017,100870.0,100860.0,0.712391]
[1734562070240,0.0012,100870.0,100860.0,0.712391]
[1734562070842,0.0012,100870.0,100860.0,0.713391]
[1734562071037,0.0012,100870.0,100860.0,0.80801982]
[1734562071242,0.0017,100870.0,100860.0,0.80801982]
[1734562071738,0.0017,100870.0,100860.0,0.05271538]
[1734562072145,0.0012,100870.0,100860.0,0.05271538]
[1734562072539,0.0012,100870.0,100860.0,0.41351538]
[1734562073134,0.0017,100870.0,100860.0,0.41351538]